{"text_format":"3","workbook":"xlsx","n_sheets":2,"sheets":["بدء","فاتورة الخدمة"],"not_rendered":{"images":1,"defined_names":1},"read":"whole","date_system":"1900"}

{"sheet":"بدء","index":0,"n_rows":8,"n_cols":2,"rows_kept":8}
[null,"حول هذا القالب"]
[null,"استخدم هذا القالب لإنشاء \"فاتورة الخدمة\"."]
[null,"قم بتعبئة تفاصيل \"رقم الفاتورة\" و\"التاريخ\" و\"اسم الشركة\" و\"العنوان\" والشعار\" و\"الجهة المحرر لها الفاتورة\"."]
[null,"أدخل المعلومات في الجداول."]
[null,"يتم حساب الإجمالي بالنيابة عنك تلقائياً."]
[null,"ملاحظة: "]
[null,"تم توفير إرشادات إضافية في العمود A في ورقة العمل \"فاتورة الخدمة\". تم إخفاء هذا النص عن قصد. لإزالة النص، حدد العمود A، ثم حدد \"حذف\". لإظهار النص، حدد العمود A، ثم قم بتغيير لون الخط."]
[null,"للتعرّف على المزيد حول الجداول، اضغط على SHIFT ثم F10 داخل جدول، وحدد الخيار \"جدول\"، ثم حدد \"نص بديل\"."]

{"sheet":"فاتورة الخدمة","index":1,"n_rows":44,"n_cols":5,"rows_kept":44,"merged":[[0,1,0,2],[0,3,0,4],[2,1,2,3],[3,1,3,3],[4,1,4,2],[5,1,5,2],[6,1,6,2],[7,1,7,2],[41,1,41,2],[41,3,41,4],[43,1,43,4]]}
[null,"يوجد العنصر النائب للشعار في هذه الخلية.",null,"الفاتورة"]
[]
[null,"اسم شركتك"]
[null,"شعار الشركة"]
[null,"عنوان الشارع",null,"رقم الفاتورة","الرقم"]
[null,"المدينة، الرمز البريدي للشارع",null,"التاريخ",{"$f":"TODAY()","v":"2022-05-09"}]
[null,"فاكس الهاتف",null,"معرّف العميل","المعرّف"]
[null,"البريد الإلكتروني"]
[null,"إلى","الاسم"]
[null,null,"اسم الشركة"]
[null,null,"عنوان الشارع"]
[null,null,"المدينة والرمز البريدي للشارع"]
[null,null,"الهاتف"]
[null,"البائع","الوظيفة","شروط الدفع","تاريخ الاستحقاق"]
[{"$nulls":3},"استحقاق الدفع عند الاستلام"]
[]
[null,"الكمية","الوصف","سعر الوحدة","أسطر الإجمالي"]
[{"$nulls":4},{"$f":"IF(SUM(B18)>0,SUM(B18*'فاتورة الخدمة'!$D18),\"\")","v":""}]
[{"$nulls":4},{"$f":"IF(SUM(B19)>0,SUM(B19*'فاتورة الخدمة'!$D19),\"\")","v":""}]
[{"$nulls":4},{"$f":"IF(SUM(B20)>0,SUM(B20*'فاتورة الخدمة'!$D20),\"\")","v":""}]
[{"$nulls":4},{"$f":"IF(SUM(B21)>0,SUM(B21*'فاتورة الخدمة'!$D21),\"\")","v":""}]
[{"$nulls":4},{"$f":"IF(SUM(B22)>0,SUM(B22*'فاتورة الخدمة'!$D22),\"\")","v":""}]
[{"$nulls":4},{"$f":"IF(SUM(B23)>0,SUM(B23*'فاتورة الخدمة'!$D23),\"\")","v":""}]
[{"$nulls":4},{"$f":"IF(SUM(B24)>0,SUM(B24*'فاتورة الخدمة'!$D24),\"\")","v":""}]
[{"$nulls":4},{"$f":"IF(SUM(B25)>0,SUM(B25*'فاتورة الخدمة'!$D25),\"\")","v":""}]
[{"$nulls":4},{"$f":"IF(SUM(B26)>0,SUM(B26*'فاتورة الخدمة'!$D26),\"\")","v":""}]
[{"$nulls":4},{"$f":"IF(SUM(B27)>0,SUM(B27*'فاتورة الخدمة'!$D27),\"\")","v":""}]
[{"$nulls":4},{"$f":"IF(SUM(B28)>0,SUM(B28*'فاتورة الخدمة'!$D28),\"\")","v":""}]
[{"$nulls":4},{"$f":"IF(SUM(B29)>0,SUM(B29*'فاتورة الخدمة'!$D29),\"\")","v":""}]
[{"$nulls":4},{"$f":"IF(SUM(B30)>0,SUM(B30*'فاتورة الخدمة'!$D30),\"\")","v":""}]
[{"$nulls":4},{"$f":"IF(SUM(B31)>0,SUM(B31*'فاتورة الخدمة'!$D31),\"\")","v":""}]
[{"$nulls":4},{"$f":"IF(SUM(B32)>0,SUM(B32*'فاتورة الخدمة'!$D32),\"\")","v":""}]
[{"$nulls":4},{"$f":"IF(SUM(B33)>0,SUM(B33*'فاتورة الخدمة'!$D33),\"\")","v":""}]
[{"$nulls":4},{"$f":"IF(SUM(B34)>0,SUM(B34*'فاتورة الخدمة'!$D34),\"\")","v":""}]
[{"$nulls":4},{"$f":"IF(SUM(B35)>0,SUM(B35*'فاتورة الخدمة'!$D35),\"\")","v":""}]
[{"$nulls":4},{"$f":"IF(SUM(B36)>0,SUM(B36*'فاتورة الخدمة'!$D36),\"\")","v":""}]
[{"$nulls":4},{"$f":"IF(SUM(B37)>0,SUM(B37*'فاتورة الخدمة'!$D37),\"\")","v":""}]
[{"$nulls":3},"الإجمالي الفرعي",{"$f":"IF(SUM(E18:E37)>0,SUM(E18:E37),\"\")","v":""}]
[{"$nulls":3},"ضريبة المبيعات"]
[{"$nulls":3},"الإجمالي",{"$f":"IF(SUM(E38)>0,SUM((E38*E39)+E38),\"\")","v":""}]
[]
[null,"تُدفع كل الشيكات إلى",null,{"$f":"B3","v":"اسم شركتك"}]
[]
[null,"شكراً لتعاملك معنا!"]